Workbook

Sheet البدء
B1: حول هذا القالب
B2: تعقب الاستثمار الأولي في موقع الويب ومزاياه والتكاليف باستخدام أداة موازنة موقع الويب هذه.
B3: أدخل التفاصيل في الجداول لحساب الإجماليات تلقائيًا ومقاييس التقييم.
B4: ملاحظة:
B5: تم توفير إرشادات إضافية في العمود A لورقة عمل BUDGET TOOL. تم إخفاء هذا النص عن قصد. لإزالة النص، حدد العمود A، ثم حدد "حذف". لإظهار النص، حدد العمود A، ثم قم بتغيير لون الخط.
B6: لمعرفة المزيد حول الجداول في ورقة العمل، اضغط على SHIFT ثم F10 داخل جدول، وحدد خيار TABLE، ثم حدد النص البديل.

Sheet أداة الموازنة
B2: أجهزة Quadrex
B3: أداة موازنة موقع الويب
B4: 2022-12-01
B6: بيانات الشركة | C6: السعر
B7: معدل العائد المطلوب | C7: 10%
B8: معدل الضريبة | C8: 30%
B10: الاستثمار الأولي في موقع الويب | C10: السنة
B11: الأجهزة (على سبيل المثال، الخوادم) | C11: ر.س.‏ 25,000.00
B12: البرامج (على سبيل المثال، برنامج كتالوج التجارة الإلكترونية) | C12: ر.س.‏ 15,000.00
B13: التطوير (على سبيل المثال، تصميم موقع الجهة الخارجية وتطويره) | C13: ر.س.‏ 150,000.00
B14: إجمالي الاستثمارات الأولية | C14: =SUBTOTAL(109,الاستثمار_الأولي[السنة]) -> ر.س.‏ 190,000.00
B16: المزايا من موقع الويب | C16: السنة 1 | D16: السنة 2 | E16: السنة 3
B17: المبيعات المباشرة | C17: ر.س.‏ 15,000.00 | D17: ر.س.‏ 50,000.00 | E17: ر.س.‏ 75,000.00
B18: المبيعات التزايدية الناتجة عن تعزيز كفاءة مندوب المبيعات/الفعالية الترويجية | C18: ر.س.‏ 25,000.00 | D18: ر.س.‏ 25,000.00 | E18: ر.س.‏ 25,000.00
B19: المبيعات التزايدية الناتجة عن زيادة مساهمة الشريك | C19: ر.س.‏ 25,000.00 | D19: ر.س.‏ 25,000.00 | E19: ر.س.‏ 25,000.00
B20: تكاليف السفر المخفضة | C20: ر.س.‏ 25,000.00 | D20: ر.س.‏ 25,000.00 | E20: ر.س.‏ 25,000.00
B21: تكاليف خدمة العملاء المخفضة | C21: ر.س.‏ 50,000.00 | D21: ر.س.‏ 50,000.00 | E21: ر.س.‏ 50,000.00
B22: إجمالي الفوائد | C22: =SUBTOTAL(109,الفوائد[السنة 1]) -> ر.س.‏ 140,000.00 | D22: =SUBTOTAL(109,الفوائد[السنة 2]) -> ر.س.‏ 175,000.00 | E22: =SUBTOTAL(109,الفوائد[السنة 3]) -> ر.س.‏ 200,000.00
B24: التكاليف (باستثناء الاستثمارات الرأسمالية الأولية) | C24: السنة 1 | D24: السنة 2 | E24: السنة 3
B25: تكلفة المبيعات | C25: ر.س.‏ 7,500.00 | D25: ر.س.‏ 25,000.00 | E25: ر.س.‏ 37,500.00
B26: الصيانة | C26: ر.س.‏ 15,000.00 | D26: ر.س.‏ 15,000.00 | E26: ر.س.‏ 15,000.00
B27: إدارة المشاريع، دعم العملاء | C27: ر.س.‏ 35,000.00 | D27: ر.س.‏ 35,000.00 | E27: ر.س.‏ 35,000.00
B28: الإعلانات عبر الإنترنت، تسجيل محرك البحث | C28: ر.س.‏ 10,000.00 | D28: ر.س.‏ 10,000.00 | E28: ر.س.‏ 10,000.00
B29: الإهلاك في النفقات الكبيرة (تستخدم العملية الحسابية فترة ثلاث سنوات) | C29: =الاستثمار_الأولي[[#Totals],[السنة]]/3 -> ر.س.‏ 63,333.33 | D29: =الاستثمار_الأولي[[#Totals],[السنة]]/3 -> ر.س.‏ 63,333.33 | E29: =الاستثمار_الأولي[[#Totals],[السنة]]/3 -> ر.س.‏ 63,333.33
B30: إجمالي التكاليف | C30: =SUBTOTAL(109,التكاليف[السنة 1]) -> ر.س.‏ 130,833.33 | D30: =SUBTOTAL(109,التكاليف[السنة 2]) -> ر.س.‏ 148,333.33 | E30: =SUBTOTAL(109,التكاليف[السنة 3]) -> ر.س.‏ 160,833.33
B32: الإجماليات | D32: السنة 1 | E32: السنة 2 | F32: السنة 3
B33: صافي الفوائد (التكاليف) | D33: =الفوائد[[#Totals],[السنة 1]]-التكاليف[[#Totals],[السنة 1]] -> ر.س.‏ 9,166.67 | E33: =الفوائد[[#Totals],[السنة 2]]-التكاليف[[#Totals],[السنة 2]] -> ر.س.‏ 26,666.67 | F33: =الفوائد[[#Totals],[السنة 3]]-التكاليف[[#Totals],[السنة 3]] -> ر.س.‏ 39,166.67
B34: الضريبة | D34: =D33*نسبة_الضريبة -> ر.س.‏ 2,750.00 | E34: =E33*نسبة_الضريبة -> ر.س.‏ 8,000.00 | F34: =F33*نسبة_الضريبة -> ر.س.‏ 11,750.00
B35: القيم بعد خصم الضريبة | D35: =D33-D34 -> ر.س.‏ 6,416.67 | E35: ر.س.‏ 18,666.67 | F35: ر.س.‏ 27,416.67
B36: الإهلاك المضاف مرة أخرى | D36: =C29 -> ر.س.‏ 63,333.33 | E36: =D29 -> ر.س.‏ 63,333.33 | F36: =E29 -> ر.س.‏ 63,333.33
B37: التدفق النقدي | C37: =-الاستثمار_الأولي[[#Totals],[السنة]] -> -ر.س.‏ 190,000.00 | D37: =D35+D36 -> ر.س.‏ 69,750.00 | E37: ر.س.‏ 82,000.00 | F37: ر.س.‏ 90,750.00
B38: التدفق النقدي التراكمي | C38: =C37 -> -ر.س.‏ 190,000.00 | D38: =C38+D37 -> ر.س.‏ 120,250.00- | E38: ر.س.‏ 38,250.00- | F38: ر.س.‏ 52,500.00
B40: مقاييس التقييم | C40: القيم
B41: صافي القيمة الحالية (NPV) | C41: =C37+(NPV(ROR,D37:F37)) -> ر.س.‏ 9,359.50
B42: معدل العائد الداخلي (IRR) | C42: =IRR(C37:F37) -> 12.66%
B43: فترة الاسترداد (بالسنوات) | C43: =IF(F38<=0,"أكثر من 3 سنوات",IF(E38<=0,(F37-F38)/F37+2,IF(D38<=0,(E37-E38)/E37+1,IF(C38<=0,(D37-D38)/D37,"غير متوفر")))) -> 2.42
